Workbook

Sheet busta paga
A1: DITTA
D2: Minimo tabellare
A3: Sede | D3: Contingenza
D4: Premio di produzione
A5: Città | D5: Terzo elemento
D6: E.D.R.
A7: P.I. | D7: Superminimo individuale
A8: DIPENDENTE | D8: Scatti di anzianità n. | G8: =E8*F8 -> 0
D10: Retribuzione di fatto | G10: =SUM(G2:G8) -> 0
D12: Retribuzione oraria di fatto | F12: =G10/173 -> 0
A13: Cod. fiscale
A14: Reddito familiare | D14: Straordinario al 15% | F14: =F12*1.15 -> 0 | G14: =ROUND(E14*F14,2) -> 0
A15: Reddito complessivo | D15: Straordinario al 20% | F15: =F12*1.2 -> 0 | G15: =ROUND(E15*F15,2) -> 0
A16: Data assunz. | D16: Straordinario al 25% | F16: =F12*1.25 -> 0 | G16: =ROUND(E16*F16,2) -> 0
A17: Qualifica | D17: Straordinario al 50% | F17: =F12*1.5 -> 0 | G17: =ROUND(E17*F17,2) -> 0
A18: Livello
A19: Matricola
A20: MESE di | D20: Festività non godute
A21: GG. lavorati | D21: Ferie non godute
D23: Retribuzione lorda | G23: =SUM(G10,G14:G17) -> 0
A24: Scaglioni | B24: Aliquota | C24: Imposta | D24: Imponibile previdenziale | G24: =ROUND(G23,0) -> 0
A25: 0 | B25: 23% | C25: 0 | D25: Fondo Pensioni | F25: =IF(A56<=15,9.19%,9.19%) -> 9.19% | G25: =ROUND(G24*F25,2) -> 0
A26: 1,250.00 | B26: 27% | C26: =ROUND(A26*B25,2) -> 287.50 | D26: Cassa integr. Straord. | F26: 0.30% | G26: =G24*F26 -> 0
A27: 2,333.33 | B27: 38% | C27: =ROUND((A27-A26)*B26+C26,2) -> 580.00
A28: 4,583.33 | B28: 41% | C28: =ROUND((A28-A27)*B27+C27,2) -> 1,435.00
A29: 6,250.00 | B29: 43% | C29: =ROUND((A29-A28)*B28+C28,2) -> 2,118.33 | G29: =SUM(G25:G28) -> 0
D30: Indennità di cassa
D31: Indennità malattia
D33: Imponibile fiscale | G33: =G23-G29 -> 0
D34: Irpef Lorda | G34: =(G33-(VLOOKUP(G33,IRPEF,1)))*(VLOOKUP(G33,IRPEF,2))+(VLOOKUP(G33,IRPEF,3)) -> 0
A35: detraz coniuge | D35: Totale detraz d'imposta | G35: =B39 -> 0
A36: detraz figli
A37: detraz lav dip | D37: Imposta netta | G37: =G34-G35 -> 0
A38: detr ag lav dip
A39: TOTALE | B39: =SUM(B35:B38) -> 0 | D39: Rata addiz. Reg. IRPEF
D40: Rata addiz. Comunale Irpef
D41: Totale Ritenute fiscali | G41: =SUM(G37:G40) -> 0
D42: Stipendio netto | G42: =G33-G41 -> 0
D43: Assegno nucleo familiare
D45: Anticipi
C46: =SUM(C40:C44) -> 0
D47: Totale | G47: =G42+G43-G45 -> 0
D48: Arrotondamento precedente
D49: Arrotondamento attuale
D50: NETTO IN BUSTA | G50: =G47+G48+G49 -> 0
A55: Numero dipendenti

Sheet ccnl
A1: DATI DA C.C.N.L. DEL COMMERCIO E TERZIARIO
A2: Livelli | E2: Quadro | F2: 1 | G2: 2 | H2: 3 | I2: 4 | J2: 5 | K2: 6 | L2: 7
A3: minimo tabellare | D3: € | E3: 1339.34 | F3: 1206.49 | G3: 1043.6 | H3: 892 | I3: 771.46 | J3: 696.98 | K3: 625.75 | L3: 535.73
A4: Indennità di contingenza | D4: € | E4: 540.37 | F4: 537.52 | G4: 532.54 | H4: 527.9 | I4: 524.22 | J4: 521.94 | K4: 519.76 | L4: 517.41
A5: Terzo elemento | D5: € | E5: 2.07 | F5: 2.07 | G5: 2.07 | H5: 2.07 | I5: 2.07 | J5: 2.07 | K5: 2.07 | L5: 2.07
A6: Indennità di funzione | D6: € | E6: 150
A7: Scatti di anzianità | D7: € | E7: 25.46 | F7: 24.84 | G7: 22.83 | H7: 21.95 | I7: 20.66 | J7: 20.3 | K7: 19.73 | L7: 19.47
A8: Divisore convenzionale di settore | D8: ore | E8: 168 | F8: mensili
A9: Giornate retribuite | D9: gg | E9: 26 | F9: mensili

Sheet irpef
A1: CALCOLO DELLE DETRAZIONI DALL'IMPOSTA
A2: Detrazioni spettanti art. 13 T.U.I.R per lavoro dipendente | F2: Giorni lavorati
A3: Fino a 8000 | C3: =IF(B33<8001,B33,0) -> 0 | G3: =IF(C3=0,0,1840) -> 0.00
A4: da 8001 a 15000 | C4: =IF(B33>8000,IF(B33<15001,B33,0),0) -> 0 | E4: =IF(B33>28000,0,IF(B33>27700,40,IF(B33>26000,30,IF(B33>25000,20,IF(B33>24000,20,IF(B33>23000,10,0)))))) -> 0 | G4: =IF(C4=0,0,1388+(502*(15000-B33)/7000)+E4) -> 0.00
A5: da 15001 a 55000 | C5: =IF(B33>15000,IF(B33<55001,B33,0),0) -> 0 | G5: =IF(C5=0,0,1388+(502*(55000-B33)/40000)) -> 0.00
A6: Totale detrazione su base annuale | G6: =SUM(G3:G5) -> 0.00
A7: Tot. detrazione per giorni lavorativi | G7: =G6/365*G2 -> 0.00
A9: Tabella detrazioni teoriche per figli a carico al
A10: Figli di età inferiore ai 3 anni | D10: N. | F10: =IF(E10>3,1100,900) -> 900.00 | G10: =ROUND(E10*F10*$G$9,2) -> 0.00
A11: Figli di età superiore ai 3 anni | D11: N. | F11: =IF(E11>3,1000,800) -> 800.00 | G11: =ROUND(E11*F11*$G$9,2) -> 0.00
A12: Figlio portatore di handicap inferiore 3 anni | D12: N. | F12: =IF(E12>3,1320,1120) -> 1120.00 | G12: =ROUND(E12*F12*$G$9,2) -> 0.00
A13: Figlio portatore di handicap sup 3 anni | D13: N. | F13: =IF(E13>3,1220,1020) -> 1,020.00 | G13: =ROUND(E13*F13*$G$9,2) -> 0.00
A14: totale n. figli | E14: =SUM(E10:E13) -> 0 | F14: Totale detrazioni teoriche | G14: =SUM(G10:G13) -> 0.00
A15: coefficiente di detrazione | G15: =IF(E14=1,((95000-B33)/95000),(((95000+(15000*(E14-1))-B33)/((95000+(15000*(E14-1))))))) -> 1.00
A16: Totale detrazioni effettive per figli | G16: =ROUND(G15*G14,2) -> 0.00
A18: Detrazioni per coniuge e altre persone a carico
A19: Coniuge
A20: Fino a 15000 | C20: =IF(B33<15001,B33,0) -> 0 | G20: =ROUND(IF(G18="SI",IF(C20=0,0,(800-(110*B33/15000))),0),0) -> 0.00
A21: da 15001 a 40000 | C21: =IF(B33>15000,IF(B33<40001,B33,0),0) -> 0 | E21: =IF(B33>35200,0,IF(B33>35100,10,IF(B33>35000,20,IF(B33>34700,30,IF(B33>29200,20,IF(B33>29000,10,0)))))) -> 0 | G21: =ROUND(IF(G18="SI",IF(C21=0,0,690+E21),0),0) -> 0.00
A22: da 40001 a 80000 | C22: =IF(B33>40000,IF(B33<80001,B33,0),0) -> 0 | G22: =ROUND(IF(G18="SI",IF(C22=0,0,690*(80000-B33)/40000),0),2) -> 0.00
A23: Totale detrazione coniuge | G23: =SUM(G20:G22) -> 0.00
A24: Altre persone | D24: N. | G24: =(IF(E24=0,0,750*(80000-B33)/80000)*C24) -> 0.00
A26: Tot detrazione periodo lav carichi di famiglia (coniuge - figli - altre persone) | G26: =ROUND((G24+G23+G16)/365*G2,2) -> 0.00
A28: Totale detrazioni carichi di famiglia + lavoro dipendente | G28: =ROUND(G26+G7,2) -> 0.00
A32: CALCOLO DELL'IRE (ART. 11 TUIR)
A33: Reddito annuo | B33: ='busta paga'!C15 -> 0 | C33: Reddito mensile | D33: ='busta paga'!G33 -> 0
A34: Scaglioni annui | C34: Scaglioni mensili | E34: importo | F34: imponibile | G34: aliquota | H34: IRPEF
A35: da € | B35: a € | C35: da € | D35: a € | E35: scaglione | F35: € | G35: IRPEF | H35: LORDA
A36: 0 | B36: 15,000.00 | C36: =ROUND(A36/12,2) -> 0 | D36: =ROUND(B36/12,2) -> 1,250.00 | E36: =D36-C36 -> 1,250.00 | F36: =IF($D$33>C36,IF($D$33<=D36,$D$33-C36,E36),0) -> 0 | G36: 23% | H36: =ROUND(F36*G36,2) -> 0
A37: 15,000.01 | B37: 28,000.00 | C37: =ROUND(A37/12,2) -> 1,250.00 | D37: 2,333.33 | E37: =D37-C37 -> 1,083.33 | F37: =IF($D$33>C37,IF($D$33<=D37,$D$33-C37,E37),0) -> 0 | G37: 27% | H37: =ROUND(F37*G37,2) -> 0
A38: 28,000.01 | B38: 55,000.00 | C38: 2,333.33 | D38: 4,583.33 | E38: =D38-C38 -> 2,250.00 | F38: =IF($D$33>C38,IF($D$33<=D38,$D$33-C38,E38),0) -> 0 | G38: 38% | H38: =ROUND(F38*G38,2) -> 0.00
A39: 55,000.01 | B39: 75,000.00 | C39: 4,583.33 | D39: 6,250.00 | E39: =D39-C39 -> 1,666.67 | F39: =IF($D$33>C39,IF($D$33<=D39,$D$33-C39,E39),0) -> 0 | G39: 41% | H39: =ROUND(F39*G39,2) -> 0
A40: 75,000.01 | B40: oltre | C40: 6,250.00 | E40: =IF((D33-C40)>0,D33-C40,0) -> 0 | F40: =IF($D$33>C40,IF($D$33<=D40,$D$33-C40,E40),0) -> 0 | G40: 43% | H40: =ROUND(F40*G40,2) -> 0
H41: =SUM(H36:H40) -> 0

Sheet assegni
A1: Assegni per nucleo familiare con entrambi i genitori o un solo genitore e nessun componente disabile
A3: N. componenti (oltre i genitori/e) | B3: Reddito fino a € 12.500 | D3: Reddito oltre € 12.500
B4: Importo assegno | C4: Fascia di reddito | D4: diminuzioni | E4: Importo assegno
A5: 1 | C5: da 12500 a 24000 | D5: =IF('busta paga'!C14>12500,IF('busta paga'!C14<24000.01,ROUNDUP(('busta paga'!C14-12500)/100,0)*9.3,),) -> 0
C6: da 24001a 40000 | D6: =IF('busta paga'!C14<40000.01,IF('busta paga'!C14> 24000,ROUNDUP((24000-12500)/100,0)*9.3+ROUNDUP(('busta paga'!C14-24000)/100,0)*0.5,),) -> 0
C7: oltre 40000 | D7: =IF('busta paga'!C14>40000.01,ROUNDUP((24000-12500)/100,0)*9.3+ROUNDUP((40000-24000)/100,0)*0.5+ROUNDUP(('busta paga'!C14-40000)/100,0)*2.3,) -> 0
B8: 1650 | D8: =SUM(D5:D7) -> 0 | E8: =B8-D8 -> 1650
A10: 2 | C10: da 12500 a 29000 | D10: =IF('busta paga'!C14>12500.01,IF('busta paga'!C14<29000.01,ROUNDUP(('busta paga'!C14-12500)/100,0)*13,),) -> 0
C11: da 29001a 40000 | D11: =IF('busta paga'!C14<40000.01,IF('busta paga'!C14> 29000,ROUNDUP((29000-12500)/100,0)*13+ROUNDUP(('busta paga'!C14-29000)/100,0)*0.9,),) -> 0
C12: oltre 40000 | D12: =IF('busta paga'!C14>40000.01,ROUNDUP((29000-12500)/100,0)*13+ROUNDUP((40000-29000)/100,0)*0.9+ROUNDUP(('busta paga'!C14-40000)/100,0)*3.1,) -> 0
B13: 3100 | D13: =SUM(D10:D12) -> 0 | E13: =B13-D13 -> 3100
A15: 3 | C15: da 12500 a 34700 | D15: =IF('busta paga'!C14>12500.01,IF('busta paga'!C14<34700.01,ROUNDUP(('busta paga'!C14-12500)/100,0)*11.5,),) -> 0
C16: da 34701a 40000 | D16: =IF('busta paga'!C14<40000.01,IF('busta paga'!C14>34700,ROUNDUP((34700-12500)/100,0)*11.5+ROUNDUP(('busta paga'!C14-34700)/100,0)*1.4,),) -> 0
C17: oltre 40000 | D17: =IF('busta paga'!C14>40000.01,ROUNDUP((34700-12500)/100,0)*11.5+ROUNDUP((40000-34700)/100,0)*1.4+ROUNDUP(('busta paga'!C14-40000)/100,0)*4.8,) -> 0
B18: 4500 | D18: =SUM(D15:D17) -> 0 | E18: =B18-D18 -> 4500
A20: 4 | C20: da 12500 a 21300 | D20: =IF('busta paga'!C14>12500.01,IF('busta paga'!C14<21300.01,ROUNDUP(('busta paga'!C14-12500)/100,0)*5,),) -> 0
C21: da 21301 a 36100 | D21: =IF('busta paga'!C14<36100.01,IF('busta paga'!C14>21300,ROUNDUP((21300-12500)/100,0)*5+ROUNDUP(('busta paga'!C14-21300)/100,0)*10.5,),) -> 0
C22: da 36101 a 45000 | D22: =IF('busta paga'!C14<45000.01,IF('busta paga'!C14>36100,ROUNDUP((21300-12500)/100,0)*5+ROUNDUP((36100-21300)/100,0)*10.5+ROUNDUP(('busta paga'!C14-45000)/100,0)*19.6,),) -> 0
C23: oltre 45000 | D23: =IF('busta paga'!C14>45000.01,ROUNDUP((21300-12500)/100,0)*5+ROUNDUP((36100-21300)/100,0)*10.5+ROUNDUP((45000-36100)/100,0)*19.6+ROUNDUP(('busta paga'!C14-45000)/100,0)*6.2,) -> 0
B24: 6000 | D24: =SUM(D20:D23) -> 0 | E24: =B24-D24 -> 6000
A26: 5 | C26: da 12500 a 21300 | D26: =IF('busta paga'!C14>12500.01,IF('busta paga'!C14<21300.01,ROUNDUP(('busta paga'!C14-12500)/100,0)*7.5,),) -> 0
C27: da 21301 a 36100 | D27: =IF('busta paga'!C14<36100.01,IF('busta paga'!C14>21300,ROUNDUP((21300-12500)/100,0)*7.5+ROUNDUP(('busta paga'!C14-21300)/100,0)*11.2,),) -> 0
C28: da 36101 a 45000 | D28: =IF('busta paga'!C14<45000.01,IF('busta paga'!C14>36100,ROUNDUP((21300-12500)/100,0)*7.5+ROUNDUP((36100-21300)/100,0)*11.2+ROUNDUP(('busta paga'!C14-45000)/100,0)*1.6,),) -> 0
C29: oltre 45000 | D29: =IF('busta paga'!C14>45000.01,ROUNDUP((21300-12500)/100,0)*7.5+ROUNDUP((36100-21300)/100,0)*11.2+ROUNDUP((45000-36100)/100,0)*1.6+ROUNDUP(('busta paga'!C14-45000)/100,0)*8.8,) -> 0
B30: 7500 | D30: =SUM(D26:D29) -> 0 | E30: =B30-D30 -> 7500
A33: oltre 5 | C33: L'importo dell'assegno è quello previsto per 5 componenti
C34: ma va maggiorato del 15% più € 650 per ogni componente oltre il quinto
